bitfinex-derivatives/quotes_BNBF0:USTF0_20250511
["timestamp","ask_amount","ask_price","bid_price","bid_amount"]
[1746930283512,0.24693671,664.11,663.14,0.30159543]
[1746930284413,0.24693671,664.52,663.14,0.30159543]
[1746930284713,0.54791035,664.51,663.14,0.30159543]
[1746930285012,0.30097817,664.5,663.14,0.30159543]
[1746930285308,0.54791488,664.5,663.14,0.30159543]
[1746930285512,0.30097817,664.5,663.14,0.30159543]
[1746930286213,0.24694424,664.49,663.14,0.30159543]
[1746930286414,0.30098723,664.48,663.14,0.30159543]
[1746930286713,0.24694424,664.47,663.14,0.30159543]
[1746930286910,0.30099629,664.46,663.14,0.30159543]
[1746930287110,0.54794053,664.46,663.14,0.30159543]
[1746930287309,0.30099629,664.46,663.14,0.30159543]
[1746930287713,0.24693515,664.45,663.14,0.30159543]
[1746930288013,0.24693515,664.44,663.14,0.30159543]
[1746930288314,0.24693515,664.45,663.14,0.30159543]
[1746930289714,0.24693515,664.44,663.14,0.30159543]
[1746930290217,0.24693515,664.43,663.14,0.30159543]
[1746930290814,0.24693515,664.45,663.14,0.30159543]
[1746930291015,0.24693515,664.42,663.14,0.30159543]
[1746930291414,0.24693515,664.45,663.14,0.30159543]
[1746930292510,0.24693515,664.44,663.14,0.30159543]
[1746930293316,0.24693515,664.45,663.14,0.30159543]
[1746930294516,0.30099629,664.46,663.14,0.30159543]
[1746930294817,0.24683904,664.45,663.15,0.785]
[1746930295217,0.24683904,664.45,663.16,0.30158634]
[1746930295817,0.24683904,664.45,663.17,0.811]
[1746930296017,0.24683904,664.45,663.18,0.30157724]
[1746930305524,0.24683904,664.44,663.18,0.30157724]
[1746930305923,0.24683904,664.45,663.18,0.30157724]
[1746930306125,0.24683904,664.44,663.18,0.30157724]
[1746930306525,0.24683904,664.45,663.18,0.30157724]
[1746930308722,0.24683904,664.44,663.18,0.30157724]
[1746930308919,0.24683904,664.45,663.18,0.30157724]
[1746930309327,0.24683904,664.44,663.18,0.30157724]
[1746930309531,0.24683904,664.44,663.17,0.811]
[1746930309732,0.24683904,664.43,663.17,0.811]
[1746930310432,0.24683904,664.42,663.17,0.811]
[1746930310833,0.24683904,664.41,663.17,0.811]
[1746930311533,0.24683904,664.45,663.17,0.811]
[1746930311735,0.24683904,664.4,663.17,0.811]
[1746930312136,0.24683904,664.39,663.17,0.811]
[1746930312538,0.24683904,664.38,663.17,0.811]
[1746930312834,0.24683904,664.37,663.17,0.811]
[1746930313440,0.24683904,664.36,663.17,0.811]
[1746930313635,0.24683904,664.35,663.17,0.811]
[1746930314241,0.24683904,664.34,663.17,0.811]
[1746930314542,0.24683904,664.33,663.17,0.811]
[1746930314843,0.24683904,664.32,663.17,0.811]
[1746930315343,0.24683904,664.31,663.17,0.811]
[1746930315843,0.24683904,664.3,663.17,0.811]
[1746930316043,0.24683904,664.3,663.18,0.974]
[1746930316644,0.24683904,664.42,663.18,0.974]
[1746930316946,0.24683904,664.41,663.18,0.974]
[1746930317345,0.24683904,664.4,663.18,0.974]
[1746930317746,0.24683904,664.39,663.18,0.974]
[1746930318147,0.30103707,664.37,663.18,0.974]
[1746930318646,0.24683904,664.36,663.18,0.974]
[1746930319447,0.24683904,664.35,663.18,0.974]
[1746930319746,0.24683904,664.34,663.18,0.974]
[1746930320147,0.24683904,664.33,663.18,0.974]
[1746930320446,0.24683904,664.32,663.18,0.974]
[1746930320748,0.24683904,664.31,663.18,0.974]
[1746930321149,0.24683904,664.3,663.18,0.974]
[1746930321450,0.24683904,664.29,663.18,0.974]
[1746930321950,0.24683904,664.28,663.18,0.974]
[1746930322150,0.24683904,664.28,663.18,1.724]
[1746930322354,0.24683904,664.27,663.18,1.724]
[1746930322551,0.24683904,664.26,663.18,1.724]
[1746930323147,0.24683904,664.25,663.18,1.724]
[1746930323451,0.24683904,664.25,663.18,2.582]
[1746930323647,0.24683904,664.24,663.18,2.582]
[1746930323951,0.24683904,664.23,663.18,2.582]
[1746930324250,0.24683904,664.22,663.18,2.582]
[1746930324650,0.24683904,664.21,663.18,2.582]
[1746930325045,0.24683904,664.2,663.18,2.582]
[1746930325351,0.24683904,664.19,663.18,2.582]
[1746930325751,0.24683904,664.18,663.18,2.582]
[1746930326152,0.24683904,664.17,663.18,2.582]
[1746930326753,0.24683904,664.16,663.18,2.582]
[1746930327154,0.24683904,664.15,663.18,2.582]
[1746930327555,0.24683904,664.14,663.18,2.582]
[1746930328049,0.30115039,664.12,663.18,2.582]
[1746930328449,0.24683904,664.11,663.18,2.582]
[1746930328654,0.30116399,664.09,663.18,2.582]
[1746930328854,0.24683904,664.08,663.18,2.582]
[1746930329051,0.3011776,664.06,663.18,2.582]
[1746930329555,0.24683904,664.05,663.18,2.582]
[1746930329756,0.30119121,664.03,663.18,2.582]
[1746930330053,0.24683904,664.02,663.18,2.582]
[1746930330257,0.30120481,664.0,663.18,2.582]
[1746930331658,0.24683904,663.99,663.18,2.582]
[1746930331859,0.30121389,663.98,663.18,2.582]
[1746930332159,0.24683904,663.97,663.18,2.582]
[1746930332561,0.30122296,663.96,663.18,2.582]
[1746930332962,0.24683904,663.95,663.18,2.582]
[1746930333162,0.30123203,663.94,663.18,2.582]
[1746930333557,0.24683904,663.93,663.18,2.582]
[1746930333762,0.30124111,663.92,663.18,2.582]
[1746930334663,0.24683904,663.91,663.18,2.582]
[1746930334965,0.30125018,663.9,663.18,2.582]
[1746930335465,0.24683904,663.89,663.18,2.582]
[1746930335666,0.30125926,663.88,663.18,2.582]
[1746930336064,0.24683904,663.87,663.18,2.582]
[1746930336265,0.30126833,663.86,663.18,2.582]
[1746930337267,0.24683904,663.85,663.18,2.582]
[1746930337565,0.30127741,663.84,663.18,2.582]
[1746930338367,0.24683904,663.83,663.18,2.582]
[1746930338668,0.30128649,663.82,663.18,2.582]
[1746930338963,0.24683904,663.81,663.18,2.582]
[1746930339167,0.54813007,663.81,663.18,2.582]
[1746930339566,0.30129103,663.81,663.18,2.582]
[1746930339864,0.24705085,663.8,663.18,2.582]
[1746930342374,0.30129103,663.81,663.18,2.582]
[1746930342873,0.24705087,663.8,663.18,2.582]
[1746930345480,0.30129103,663.81,663.18,2.582]
[1746930345675,0.30129103,663.81,663.18,1.608]
[1746930345876,0.24707242,663.8,663.16,0.30158634]
[1746930347680,0.3013001,663.79,663.16,0.30158634]
[1746930348182,0.24707242,663.78,663.16,0.30158634]
[1746930348379,0.30130918,663.77,663.16,0.30158634]
[1746930348580,0.30130918,663.77,663.17,0.704]
[1746930348779,0.24707242,663.76,663.17,0.704]
[1746930348974,0.30131826,663.75,663.17,0.704]
[1746930349474,0.24707242,663.74,663.17,0.704]
[1746930349780,0.54839522,663.74,663.18,1.688]
[1746930350181,0.24707242,663.73,663.18,1.688]
[1746930356186,0.3013228,663.74,663.18,1.688]
[1746930356584,0.24705608,663.73,663.18,1.688]
[1746930356784,0.3013228,663.74,663.18,1.688]
[1746930357284,0.2470561,663.73,663.18,1.688]
[1746930357985,0.3013228,663.74,663.18,1.688]
[1746930358586,0.24705619,663.73,663.18,1.688]
[1746930371691,0.3013228,663.74,663.18,1.688]
[1746930371893,0.2470325,663.73,663.18,1.688]
[1746930376197,0.2470325,663.73,663.18,2.481]
[1746930376397,0.54835984,663.73,663.18,2.481]
[1746930376895,0.2470325,663.72,663.18,1.488]
[1746930377891,0.30133642,663.71,663.18,1.488]
[1746930378295,0.2470325,663.7,663.18,1.488]
[1746930378492,0.54837346,663.7,663.18,1.488]
[1746930378996,0.2470325,663.69,663.18,1.488]
[1746930379299,0.2470325,663.69,663.18,2.314]
[1746930379699,0.2470325,663.69,663.18,1.619]
[1746930379998,0.30134096,663.7,663.18,1.619]
[1746930380298,0.24707756,663.68,663.18,1.619]
[1746930380699,0.24707756,663.69,663.18,1.619]
[1746930382394,0.54842306,663.69,663.18,1.619]
[1746930382699,0.24707756,663.68,663.18,1.619]
[1746930383798,0.24707756,663.67,663.18,1.619]
[1746930384102,0.24707756,663.66,663.18,1.619]
[1746930384403,0.30136367,663.65,663.18,1.619]
[1746930385002,0.24707756,663.64,663.18,1.619]
[1746930385203,0.30137275,663.63,663.18,1.619]
[1746930385404,0.54845031,663.63,663.18,1.619]
[1746930385804,0.24707756,663.62,663.18,1.619]
[1746930386105,0.24707756,663.61,663.18,1.619]
[1746930386504,0.24707756,663.6,663.18,1.619]
[1746930386899,0.24707756,663.59,663.18,1.619]
[1746930387305,0.24707756,663.62,663.18,1.619]
[1746930387901,0.24707756,663.61,663.18,1.619]
[1746930388405,0.24707756,663.6,663.18,1.619]
[1746930388905,0.24707756,663.59,663.18,1.619]
[1746930389207,0.24707756,663.58,663.18,1.619]
[1746930389605,0.24707756,663.57,663.18,1.619]
[1746930390001,0.24707756,663.56,663.18,1.619]
[1746930390402,1.94906436,663.6,663.18,1.619]
[1746930390705,0.24707756,663.59,663.18,1.619]
[1746930391206,0.30139546,663.58,663.18,1.619]
[1746930391807,0.54847302,663.58,663.18,1.619]
[1746930392108,0.24707756,663.57,663.18,1.619]
[1746930392409,0.5484821,663.56,663.18,1.619]
[1746930392909,0.24707756,663.55,663.18,1.619]
[1746930395011,0.30140454,663.56,663.18,1.619]
[1746930395413,0.24707951,663.55,663.18,1.619]
[1746930400615,0.24707951,664.26,663.18,1.619]
[1746930400814,0.30109598,664.24,663.18,1.619]
[1746930401622,0.24707951,664.23,663.18,1.619]
[1746930402016,0.24707951,664.22,663.18,1.619]
[1746930402219,0.30110958,664.21,663.18,1.619]
[1746930402417,0.54818909,664.21,663.18,1.619]
[1746930402721,0.24707951,664.2,663.18,1.619]
[1746930402914,0.30112318,664.18,663.18,1.619]
[1746930403117,0.24707951,664.17,663.18,1.619]
[1746930403621,0.30113679,664.15,663.18,1.619]
[1746930404122,0.24707951,664.14,663.18,1.619]
[1746930404421,0.30114585,664.13,663.18,1.619]
[1746930404617,0.54822536,664.13,663.18,1.619]
[1746930404823,0.24707951,664.12,663.18,1.619]
[1746930405125,0.54823443,664.11,663.18,1.619]
[1746930405422,0.30115946,664.1,663.18,1.619]
[1746930405621,0.54823897,664.1,663.18,1.619]
[1746930406022,0.24707951,664.09,663.18,1.619]
[1746930406318,1.94906436,663.69,663.18,1.619]
[1746930406722,0.24707951,663.68,663.18,0.826]
[1746930407029,0.24707951,663.67,663.18,0.826]
[1746930407329,0.24707951,663.66,663.18,0.826]
[1746930407730,0.24707951,663.65,663.18,0.826]
[1746930408031,0.24707951,663.68,663.18,0.826]
[1746930408432,0.24707951,663.67,663.18,0.826]
[1746930408832,0.24707951,663.66,663.18,0.826]
[1746930409033,0.24707951,663.65,663.18,0.826]
[1746930409628,0.24707951,663.64,663.18,0.826]
[1746930410132,0.24707951,663.63,663.18,0.826]
[1746930410532,0.24707951,663.62,663.18,0.826]
[1746930410730,0.24707951,663.68,663.18,0.826]
[1746930411138,0.24707951,663.67,663.18,0.826]
[1746930411529,0.24707951,663.66,663.18,0.826]
[1746930411834,0.24707951,663.65,663.18,0.826]
[1746930412234,0.24707951,663.64,663.18,0.826]
[1746930412635,0.24707951,663.63,663.18,0.826]
[1746930413036,0.24707951,663.62,663.18,0.826]
[1746930413335,0.24707951,663.61,663.18,0.826]
[1746930413833,0.24707951,663.6,663.18,0.826]
[1746930414135,0.24707951,663.66,663.18,0.826]
[1746930414437,0.24707951,663.65,663.18,0.826]
[1746930414839,2.19614387,663.64,663.18,0.826]
[1746930415139,0.24707951,663.63,663.18,0.826]
[1746930415439,0.24707951,663.62,663.18,0.826]
[1746930415739,1.94906436,663.64,663.18,0.826]
[1746930416039,0.24704271,663.63,663.18,0.826]
[1746930417738,0.24704271,663.93,663.18,0.826]
[1746930418138,0.24704271,663.92,663.18,0.826]
[1746930418540,1.94906436,663.94,663.18,0.826]
[1746930419039,0.24703122,663.93,663.18,0.826]
[1746930419234,0.24703122,663.92,663.18,0.826]
[1746930419542,1.94906436,663.94,663.18,0.826]
[1746930419940,0.24703193,663.93,663.18,0.826]
[1746930421142,0.24703193,663.98,663.18,0.826]
[1746930421441,0.24703193,663.97,663.18,0.826]
[1746930421741,0.24703193,663.96,663.18,0.826]
[1746930422137,0.24703193,663.95,663.18,0.826]
[1746930422843,0.24703193,663.94,663.18,0.826]
[1746930423143,0.24703193,663.96,663.18,0.826]
[1746930423542,0.24703193,663.95,663.18,0.826]
[1746930424043,0.24703193,663.94,663.18,0.826]
[1746930424249,0.24703193,663.93,663.18,0.826]
[1746930424744,0.24703193,663.96,663.18,0.826]
[1746930425139,0.24703193,663.95,663.18,0.826]
[1746930425439,0.24703193,663.94,663.18,0.826]
[1746930425943,0.24703193,663.93,663.18,0.826]
[1746930426246,0.24703193,663.96,663.18,0.826]
[1746930429647,0.30121842,663.97,663.18,0.826]
[1746930430047,0.24694861,663.96,663.18,0.826]
[1746930433943,0.24694861,663.95,663.18,0.826]
[1746930434149,0.24694861,663.94,663.18,0.826]
[1746930434352,0.24694861,663.93,663.18,0.826]
[1746930434646,0.24694861,663.92,663.18,0.826]
[1746930434850,0.24694861,663.91,663.18,0.826]
[1746930435150,0.24694861,663.96,663.18,0.826]
[1746930436247,0.24694861,663.96,663.18,1.753]
[1746930437951,0.24694861,663.96,663.18,2.45]
[1746930441256,0.30121842,663.97,663.18,2.45]
[1746930441756,0.2469675,663.96,663.18,2.45]
[1746930447060,0.30121842,663.97,663.18,2.45]
[1746930447560,0.24695104,663.96,663.18,2.45]
[1746930448355,0.30121842,663.97,663.18,2.45]
[1746930448655,0.24697494,663.95,663.18,2.45]
[1746930448855,0.24697494,663.96,663.18,2.45]
[1746930450261,0.30121842,663.97,663.18,2.45]
[1746930450559,0.24697411,663.96,663.18,2.45]
[1746930452462,0.3012275,663.95,663.18,2.45]
[1746930452964,0.24697411,663.94,663.18,2.45]
[1746930453960,0.24697411,663.93,663.18,2.45]
[1746930454464,0.24697411,663.92,663.18,2.45]
[1746930454765,0.24697411,663.91,663.18,2.45]
[1746930455164,0.24697411,663.9,663.18,2.45]
[1746930455465,0.24697411,663.89,663.18,2.45]
[1746930456365,0.24697411,663.94,663.18,2.45]
[1746930456565,0.54820614,663.94,663.18,2.45]
[1746930456764,0.24697411,663.93,663.18,2.45]
[1746930457062,0.24697411,663.92,663.18,2.45]
[1746930457566,0.24697411,663.91,663.18,2.45]
[1746930457966,0.24697411,663.9,663.18,2.45]
[1746930458367,0.24697411,663.89,663.18,2.45]
[1746930458666,0.24697411,663.88,663.18,2.45]
[1746930459263,0.24697411,663.87,663.18,2.45]
[1746930459662,0.24697411,663.86,663.18,2.45]
[1746930459865,0.30123203,663.94,663.18,2.45]
[1746930460268,0.24703486,663.93,663.18,2.45]
[1746930460771,0.24703486,663.92,663.18,2.45]
[1746930461068,0.24703486,663.91,663.18,2.45]
[1746930461270,1.94906436,663.82,663.18,2.45]
[1746930461765,0.24703486,663.81,663.18,2.45]
[1746930462069,0.24703486,663.8,663.18,2.45]
[1746930462369,0.24703486,663.79,663.18,2.45]
[1746930462669,0.24703486,663.78,663.18,2.45]
[1746930462969,0.24703486,663.77,663.18,2.45]
[1746930463370,0.24703486,663.76,663.18,2.45]
[1746930463770,0.24703486,663.82,663.18,2.45]
[1746930465268,1.94906436,663.83,663.18,2.45]
[1746930465572,0.24696793,663.82,663.18,2.45]
[1746930466373,0.24696793,663.93,663.18,2.45]
[1746930476382,0.30123203,663.94,663.18,2.45]
[1746930476982,0.24695879,663.93,663.18,2.45]
[1746930478182,0.24695879,663.92,663.18,2.45]
[1746930478578,0.24695879,663.91,663.18,2.45]
[1746930479284,0.24695879,663.9,663.18,2.45]
[1746930479685,0.24695879,664.1,663.18,2.45]
[1746930481585,1.94906436,664.62,663.18,2.45]
[1746930481885,0.54794571,664.47,663.18,2.45]
[1746930482087,0.30099629,664.46,663.18,2.45]
[1746930482287,0.54795024,664.46,663.18,2.45]
[1746930482683,0.24695395,664.45,663.18,2.45]
[1746930482890,0.30100535,664.44,663.18,2.45]
[1746930483088,0.5479593,664.44,663.18,2.45]
[1746930483388,0.24695395,664.43,663.18,2.45]
[1746930483687,0.30100535,664.44,663.18,2.45]
[1746930483688,0.54796836,664.42,663.18,2.45]
[1746930483890,0.30101894,664.41,663.18,2.45]
[1746930484090,0.54797289,664.41,663.18,2.45]
[1746930484591,0.24695395,664.4,663.18,2.45]
[1746930484787,0.54798196,664.39,663.18,2.45]
[1746930485092,0.54798649,664.38,663.18,2.45]
[1746930485489,0.24695395,664.37,663.18,2.45]
[1746930491699,0.24695395,664.36,663.18,2.45]
[1746930492100,0.24695395,664.37,663.18,2.45]
[1746930492500,0.24695395,664.36,663.18,2.45]
[1746930492999,0.24695395,664.37,663.18,2.45]
[1746930493298,0.24695395,664.36,663.18,2.45]
[1746930493901,0.24695395,664.37,663.18,2.45]
[1746930494098,0.24695395,664.36,663.18,2.45]
[1746930494402,0.24695395,664.35,663.18,2.45]
[1746930494903,0.24695395,664.37,663.18,2.45]
[1746930495104,0.24695395,664.36,663.18,2.45]
[1746930495403,0.24695395,664.35,663.18,2.45]
[1746930495809,0.24695395,664.34,663.18,2.45]
[1746930496206,0.24695395,664.33,663.18,2.45]
[1746930496605,0.24695395,664.32,663.18,2.45]
[1746930496906,0.30103254,664.38,663.18,2.45]
[1746930497202,0.2469528,664.37,663.18,2.45]
[1746930497407,1.94906436,663.91,663.18,2.45]
[1746930498807,0.2469524,663.9,663.18,2.45]
[1746930500206,1.94906436,663.83,663.18,2.45]
[1746930500710,0.24695148,663.82,663.18,2.45]
[1746930504312,1.94906436,663.79,663.18,2.45]
[1746930504610,0.24695148,663.78,663.18,2.45]
[1746930506014,2.19601584,663.78,663.18,2.45]
[1746930506717,0.24695148,663.77,663.18,2.45]
[1746930509220,0.24695148,663.84,663.18,2.45]
[1746930510617,1.94906436,663.85,663.18,2.45]
[1746930510915,0.24695582,663.84,663.18,2.45]
[1746930511611,0.24695582,664.1,663.18,2.45]
[1746930512520,0.24695582,664.09,663.18,2.45]
[1746930512921,0.24695582,664.08,663.18,2.45]
[1746930513420,0.24695582,664.16,663.18,2.45]
[1746930513822,0.24695582,664.15,663.18,2.45]
[1746930514217,0.24695582,664.14,663.18,2.45]
[1746930514623,0.24695582,664.13,663.18,2.45]
[1746930514921,1.94906436,664.17,663.18,2.45]
[1746930515324,0.24697725,664.16,663.18,2.45]
[1746930515524,2.19604161,664.16,663.18,2.45]
[1746930515818,0.24697725,664.15,663.18,2.45]
[1746930516223,0.24697725,664.14,663.18,2.45]
[1746930516628,0.24697725,664.13,663.18,2.45]
[1746930516926,1.94906436,664.16,663.18,2.45]
[1746930517226,0.24697889,664.15,663.18,2.45]
[1746930517726,0.24697889,664.14,663.18,2.45]
[1746930518021,0.24697889,664.13,663.18,2.45]
[1746930518324,0.24697889,664.12,663.18,2.45]
[1746930518819,0.24697889,664.11,663.18,2.45]
[1746930519228,0.24697889,664.1,663.18,2.45]
[1746930519622,0.24697889,664.09,663.18,2.45]
[1746930519926,0.24697889,664.08,663.18,2.45]
[1746930520321,0.24697889,664.07,663.18,2.45]
[1746930520827,0.24697889,664.06,663.18,2.45]
[1746930521026,0.24697889,664.05,663.18,2.45]
[1746930521435,0.24697889,664.04,663.18,2.45]
[1746930521627,1.94906436,664.02,663.18,2.45]
[1746930521927,0.24697889,664.01,663.18,2.45]
[1746930522327,0.24697889,664.0,663.18,2.45]
[1746930522927,0.24697889,664.01,663.18,2.45]
[1746930524423,0.24697889,664.3,663.18,2.45]
[1746930524623,0.54805221,664.29,663.18,2.45]
[1746930524823,0.30107785,664.28,663.18,2.45]
[1746930525028,0.24697889,664.27,663.18,2.45]
[1746930525226,0.30108692,664.26,663.18,2.45]
[1746930525424,0.54806581,664.26,663.18,2.45]
[1746930526225,0.24697889,664.25,663.18,2.45]
[1746930526435,1.94906436,664.22,663.18,2.45]
[1746930526928,0.54808847,664.21,663.18,2.45]
[1746930527129,0.30111412,664.2,663.18,2.45]
[1746930527625,0.24703637,664.19,663.18,2.45]
[1746930527929,0.24703637,664.18,663.18,2.45]
[1746930528328,0.24703637,664.17,663.18,2.45]
[1746930528629,0.24703637,664.16,663.18,2.45]
[1746930529229,0.24703637,664.15,663.18,2.45]
[1746930529729,0.24703637,664.14,663.18,2.45]
[1746930530329,0.24703637,664.13,663.18,2.45]
[1746930530629,0.24703637,664.12,663.18,2.45]
[1746930531129,1.94906436,664.05,663.18,2.45]
[1746930531329,0.24703637,664.04,663.18,2.45]
[1746930532230,0.24703637,664.03,663.18,2.45]
[1746930532631,0.24703637,664.02,663.18,2.45]
[1746930532828,1.94906436,663.86,663.18,2.45]
[1746930533033,0.24703637,663.85,663.18,2.45]
[1746930533331,0.24703637,663.84,663.18,2.45]
[1746930533831,0.24703637,663.83,663.18,2.45]
[1746930534127,0.24703637,663.82,663.18,2.45]
[1746930534533,0.24703637,663.85,663.18,2.45]
[1746930534934,1.94906436,663.69,663.18,2.45]
[1746930535237,1.94906436,663.69,663.18,0.826]
[1746930535736,0.24703637,663.68,663.18,0.826]
[1746930536336,0.24703637,663.91,663.18,0.826]
[1746930536641,0.24703637,663.9,663.18,0.826]
[1746930537039,0.24703637,663.91,663.18,0.826]
[1746930537340,0.24703637,663.9,663.18,0.826]
[1746930537739,0.24703637,663.91,663.18,0.826]
[1746930538140,0.24703637,663.9,663.18,0.826]
[1746930538437,0.24703637,663.91,663.18,0.826]
[1746930538843,1.94906436,663.92,663.18,1.389]
[1746930539142,0.2470332,663.91,663.18,2.061]
[1746930539541,1.94906436,663.92,663.18,2.061]
[1746930539542,0.2470332,663.9,663.18,2.061]
[1746930539843,0.2470332,663.91,663.18,2.061]
[1746930540541,0.2470332,663.92,663.18,2.061]
[1746930541143,0.2470332,663.91,663.18,2.061]
[1746930541742,0.2470332,663.92,663.18,2.061]
[1746930542135,0.2470332,663.91,663.18,2.061]
[1746930542442,0.2470332,663.92,663.18,2.061]
[1746930542943,0.2470332,663.91,663.18,2.061]
[1746930543242,0.2470332,663.9,663.18,2.061]
[1746930543641,0.2470332,663.89,663.18,2.061]
[1746930544042,0.2470332,663.88,663.18,2.061]
[1746930544342,0.2470332,663.87,663.18,2.061]
[1746930544742,0.2470332,663.86,663.18,2.061]
[1746930545042,0.2470332,663.85,663.18,2.061]
[1746930545441,0.2470332,663.84,663.18,2.061]
[1746930546046,0.2470332,663.83,663.18,2.061]
[1746930546346,1.94906436,664.0,663.18,2.061]
[1746930546749,0.24703277,663.99,663.18,2.061]
[1746930546946,1.94906436,663.75,663.18,2.061]
[1746930547348,0.24703277,663.74,663.18,2.061]
[1746930549448,0.24703277,664.0,663.18,2.061]
[1746930549749,0.24703277,663.99,663.18,2.061]
[1746930550148,0.24703277,663.98,663.18,2.061]
[1746930550649,0.24703277,663.97,663.18,2.061]
[1746930551249,0.24703277,663.96,663.18,2.061]
[1746930551449,1.94906436,663.99,663.18,2.061]
[1746930552150,0.24705239,663.98,663.18,2.061]
[1746930553849,0.24705239,664.08,663.18,2.061]
[1746930554150,0.24705239,664.07,663.18,2.061]
[1746930554452,0.24705239,664.06,663.18,2.061]
[1746930554853,0.24705239,664.05,663.18,2.061]
[1746930555151,0.24705239,664.04,663.18,2.061]
[1746930555552,0.24705239,664.03,663.18,2.061]
[1746930556053,0.24705239,664.02,663.18,2.061]
[1746930556251,0.24705239,664.01,663.18,2.061]
[1746930556557,0.24705239,664.0,663.18,2.061]
[1746930556854,1.94906436,664.08,663.18,2.061]
[1746930557255,0.2470463,664.07,663.18,2.061]
[1746930557452,1.94906436,664.04,663.18,2.061]
[1746930557655,0.2470463,664.03,663.18,2.061]
[1746930558155,0.2470463,664.02,663.18,2.061]
[1746930558456,1.94906436,664.04,663.18,2.061]
[1746930558457,0.2470463,664.01,663.18,2.061]
[1746930558957,0.2470463,664.0,663.18,2.061]
[1746930559253,0.2470463,663.99,663.18,2.061]
[1746930559953,1.94906436,663.81,663.18,2.061]
[1746930560357,0.2470463,663.8,663.18,2.061]
[1746930561259,0.2470463,663.79,663.18,2.061]
[1746930561558,0.2470463,663.78,663.18,2.061]
[1746930561754,0.2470463,663.77,663.18,2.061]
[1746930562155,0.2470463,663.8,663.18,2.061]
[1746930562460,0.2470463,663.79,663.18,2.061]
[1746930562855,1.94906436,663.63,663.18,2.061]
[1746930563154,0.2470463,663.62,663.18,0.826]
[1746930565561,0.2470463,663.68,663.18,0.826]
[1746930567064,2.19611066,663.68,663.18,0.826]
[1746930567459,0.2470463,663.67,663.18,0.826]
[1746930569058,1.94906436,663.66,663.18,0.826]
[1746930569264,0.2470463,663.65,663.18,0.826]
[1746930570765,1.94906436,663.66,663.18,0.826]
[1746930573866,0.30111412,664.2,663.18,0.826]
[1746930574267,0.24696884,664.19,663.18,0.826]
[1746930574867,0.24696884,664.18,663.18,0.826]
[1746930575266,0.24696884,664.17,663.18,0.826]
[1746930575568,0.24696884,664.16,663.18,0.826]
[1746930575862,0.24696884,664.15,663.18,0.826]
[1746930576168,1.94906436,664.13,663.18,0.826]
[1746930576467,0.24696884,664.12,663.18,0.826]
[1746930576970,0.24696884,664.11,663.18,0.826]
[1746930577162,0.24696884,664.1,663.18,0.826]
[1746930577568,0.24696884,664.09,663.18,0.826]
[1746930578066,0.24696884,664.08,663.18,0.826]
[1746930578367,0.24696884,664.07,663.18,0.826]
[1746930578868,0.24696884,664.06,663.18,0.826]
[1746930579068,0.24696884,664.06,663.18,1.668]
[1746930579367,0.24696884,664.05,663.18,1.668]
[1746930579766,0.24696884,664.04,663.18,1.668]
[1746930580071,0.24696884,664.03,663.18,1.668]
[1746930580368,1.94906436,664.1,663.18,1.668]
[1746930580766,1.94906436,664.07,663.18,1.668]
[1746930581070,0.24695183,664.06,663.18,1.668]
[1746930581470,0.24695183,664.05,663.18,1.668]
[1746930581770,0.24695183,664.04,663.18,1.668]
[1746930582167,0.24695183,664.06,663.18,1.668]
[1746930582877,1.94906436,664.03,663.18,1.668]
[1746930583169,0.24695183,664.02,663.18,1.668]
[1746930584473,1.94906436,664.03,663.18,1.668]
[1746930584772,0.24695028,664.02,663.18,1.668]